bitfinex/quotes_BTCUSD_20250225
["timestamp","ask_amount","ask_price","bid_price","bid_amount"]
[1740503434130,0.00097561,87680.0,87679.0,0.42617418]
[1740503434339,0.00097561,87680.0,87679.0,0.42843503]
[1740503434542,0.00097561,87680.0,87679.0,0.54903503]
[1740503434742,0.00097561,87680.0,87679.0,0.64311503]
[1740503434930,0.00097561,87680.0,87679.0,0.74311503]
[1740503435131,0.000848,87730.0,87686.0,0.1206]
[1740503435371,0.00127261,87698.0,87688.0,0.1206]
[1740503435568,0.00127261,87698.0,87689.0,0.01387585]
[1740503435769,0.00127261,87698.0,87690.0,0.01454085]
[1740503435943,0.00127261,87698.0,87692.0,0.01454085]
[1740503436149,0.00127261,87698.0,87694.0,0.01454085]
[1740503436374,0.00127261,87698.0,87693.0,0.00159596]
[1740503436375,0.0011756,87698.0,87696.0,0.01454085]
[1740503436587,0.0011756,87698.0,87696.0,0.01613681]
[1740503436803,0.0011756,87698.0,87689.0,0.007]
[1740503437227,0.0011756,87698.0,87687.0,0.3251]
[1740503437584,0.0011756,87698.0,87696.0,0.007]
[1740503438975,0.0011756,87698.0,87687.0,0.3251]
[1740503439168,0.000848,87730.0,87697.0,0.36512175]
[1740503439510,0.01322413,87721.0,87707.0,0.01454085]
[1740503439650,0.01322413,87721.0,87697.0,0.36512175]
[1740503439651,0.01322413,87721.0,87708.0,0.40059634]
[1740503440062,0.01322413,87721.0,87709.0,0.00159588]
[1740503440263,0.01322413,87721.0,87708.0,0.40059634]
[1740503440671,0.01322413,87721.0,87709.0,0.01454085]
[1740503440987,0.01322413,87721.0,87709.0,0.09163278]
[1740503441133,0.01322413,87721.0,87709.0,0.09003719]
[1740503441333,0.01322413,87721.0,87709.0,0.09163278]
[1740503441645,0.01322413,87721.0,87709.0,0.45675453]
[1740503441862,0.01322413,87721.0,87709.0,0.45515894]
[1740503442062,0.01322413,87721.0,87711.0,0.01454085]
[1740503442289,0.000848,87730.0,87719.0,0.01454085]
[1740503442628,0.000848,87730.0,87718.0,0.36512175]
[1740503442629,0.000848,87730.0,87721.0,0.01454085]
[1740503442811,0.000848,87730.0,87723.0,0.01454085]
[1740503443031,0.000848,87730.0,87725.0,0.01454085]
[1740503443231,0.000848,87730.0,87727.0,0.01454085]
[1740503443468,0.000848,87730.0,87728.0,0.00159523]
[1740503444148,0.000848,87730.0,87729.0,0.01454085]
[1740503444926,0.000848,87730.0,87728.0,0.01454085]
[1740503446054,0.000848,87730.0,87729.0,0.01228]
[1740503446258,0.000848,87730.0,87726.0,0.40059634]
[1740503446409,0.000848,87730.0,87727.0,0.01613623]
[1740503446625,0.000848,87730.0,87727.0,0.01454085]
[1740503446831,0.000848,87730.0,87726.0,0.40059634]
[1740503447055,0.000848,87730.0,87726.0,0.3251]
[1740503447260,0.000848,87730.0,87727.0,0.00159558]
[1740503447484,0.000848,87730.0,87727.0,0.01613643]
[1740503447825,0.000848,87730.0,87726.0,0.3251]
[1740503448024,0.000848,87730.0,87729.0,0.01454085]
[1740503448175,0.000848,87730.0,87729.0,0.01613601]
[1740503448526,0.000848,87730.0,87729.0,0.09613601]
[1740503449298,0.000848,87730.0,87729.0,0.01454085]
[1740503449497,0.000848,87730.0,87729.0,0.01613603]
[1740503450310,0.000848,87730.0,87729.0,0.007]
[1740503450769,0.000848,87730.0,87729.0,0.00859549]
[1740503450915,0.000848,87730.0,87729.0,0.34823634]
[1740503451098,0.000848,87730.0,87729.0,0.34664085]
[1740503451302,0.000848,87730.0,87729.0,0.33964085]
[1740503451536,7e-05,87760.0,87730.0,0.01454085]
[1740503451763,0.00019731,87760.0,87741.0,0.06004085]
[1740503451995,0.00019731,87760.0,87743.0,0.01454085]
[1740503452257,0.00019731,87760.0,87745.0,0.01454085]
[1740503452487,0.00019731,87760.0,87747.0,0.01454085]
[1740503452715,0.00019731,87760.0,87749.0,0.01454085]
[1740503452940,0.00019731,87760.0,87751.0,0.01454085]
[1740503453149,0.00019731,87760.0,87742.0,0.01228]
[1740503453150,0.00019731,87760.0,87753.0,0.01454085]
[1740503453406,0.00019731,87760.0,87756.0,0.1206]
[1740503453607,0.000848,87786.0,87758.0,0.01454085]
[1740503453806,0.000848,87786.0,87756.0,0.1206]
[1740503453807,0.00127219,87786.0,87760.0,0.01454085]
[1740503454023,0.00127219,87786.0,87762.0,0.01454085]
[1740503454246,0.00127219,87786.0,87759.0,0.40059634]
[1740503454823,0.00127219,87786.0,87760.0,0.01454085]
[1740503455022,0.00127219,87786.0,87760.0,0.01613572]
[1740503455857,0.00127219,87786.0,87760.0,0.0161356]
[1740503456244,0.00127219,87786.0,87762.0,0.007]
[1740503456441,0.00127219,87786.0,87764.0,0.01454085]
[1740503456816,0.00127219,87786.0,87765.0,0.3251]
[1740503457022,0.00127219,87786.0,87766.0,0.00159475]
[1740503457652,0.00127219,87786.0,87765.0,0.3251]
[1740503458334,0.3,87783.0,87765.0,0.3251]
[1740503459767,0.3,87783.0,87766.0,0.007]
[1740503459962,0.0789,87784.0,87766.0,0.007]
[1740503460183,0.00127219,87786.0,87767.0,0.00159493]
[1740503460387,0.00127219,87786.0,87765.0,0.3251]
[1740503460599,0.00127219,87786.0,87765.0,0.3321]
[1740503461075,0.00127219,87786.0,87765.0,0.3251]
[1740503461293,0.00127219,87786.0,87766.0,0.00159475]
[1740503461486,0.00127219,87786.0,87767.0,0.007]
[1740503461735,0.00127219,87786.0,87768.0,0.00159475]
[1740503462183,0.00127219,87786.0,87769.0,0.41513719]
[1740503462336,0.00127219,87786.0,87775.0,0.21174109]
[1740503462535,0.0808,87835.0,87781.0,0.1206]
[1740503462735,0.0808,87835.0,87783.0,0.01454085]
[1740503462941,0.0808,87835.0,87785.0,0.01454085]
[1740503463143,0.0808,87835.0,87787.0,0.01454085]
[1740503463366,0.0808,87835.0,87786.0,0.4144304]
[1740503463367,0.00808,87834.0,87786.0,0.40059634]
[1740503463551,0.05672704,87832.0,87786.0,0.3251]
[1740503463753,0.3808,87828.0,87786.0,0.3251]
[1740503463957,0.05644991,87827.0,87787.0,0.0015946]
[1740503464162,0.05644991,87827.0,87788.0,0.41513719]
[1740503464417,0.08070305,87828.0,87792.0,0.36454566]
[1740503464701,0.3,87850.0,87793.0,0.06323497]
[1740503464991,0.3,87850.0,87793.0,0.06164085]
[1740503465145,0.11661488,87851.0,87793.0,0.06164085]
[1740503465360,0.034261,87852.0,87795.0,0.01454085]
[1740503465765,0.034261,87852.0,87797.0,0.01454085]
[1740503466308,0.034261,87852.0,87799.0,0.01454085]
[1740503466601,0.01786128,87853.0,87800.0,0.41443029]
[1740503466801,0.05616232,87852.0,87800.0,0.41283634]
[1740503467016,0.07424503,87853.0,87800.0,0.41283634]
[1740503467228,0.01786128,87853.0,87800.0,0.40059634]
[1740503467432,0.0563348,87840.0,87800.0,0.40059634]
[1740503467841,0.0563348,87840.0,87800.0,0.40759634]
[1740503468258,0.0563348,87840.0,87801.0,0.41673132]
[1740503468463,0.3,87841.0,87801.0,0.41513719]
[1740503468613,0.3,87841.0,87803.0,0.01446804]
[1740503468807,0.0754,87853.0,87804.0,0.00159384]
[1740503469061,0.034258,87861.0,87804.0,0.00159384]
[1740503469360,0.05637462,87869.0,87806.0,0.076]
[1740503469795,0.05678192,87863.0,87806.0,0.076]
[1740503469924,0.0008448,87849.0,87806.0,0.076]
[1740503470555,0.0008448,87849.0,87807.0,0.40059634]
[1740503470770,0.0008448,87849.0,87810.0,0.01454085]
[1740503471086,0.0008448,87849.0,87812.0,0.01454085]
[1740503471304,0.0564569,87874.0,87815.0,0.09109542]
[1740503471557,0.00029223,87874.0,87818.0,0.01454085]
[1740503471737,0.00029223,87874.0,87825.0,0.01454085]
[1740503471877,0.00029223,87874.0,87827.0,0.01454085]
[1740503472060,0.0056979,87873.0,87828.0,0.40059634]
[1740503472258,0.0056979,87873.0,87828.0,0.3251]
[1740503472259,0.01454085,87870.0,87828.0,0.3251]
[1740503472458,0.3,87861.0,87828.0,0.3251]
[1740503473121,0.3,87861.0,87829.0,0.00159393]
[1740503473529,0.05639349,87871.0,87829.0,0.00159393]
[1740503473731,0.05637462,87869.0,87828.0,0.3251]
[1740503473908,0.05632934,87871.0,87828.0,0.3321]
[1740503474094,0.05605489,87872.0,87828.0,0.3321]
[1740503474299,0.05666274,87870.0,87828.0,0.3251]
[1740503474539,0.05666274,87870.0,87829.0,0.03251]
[1740503474745,0.01454085,87867.0,87829.0,0.03251]
[1740503474952,0.36427384,87845.0,87813.0,0.3251]
[1740503475152,0.36427384,87845.0,87804.0,0.00012728]
[1740503475328,0.01454085,87837.0,87804.0,0.00012728]
[1740503475541,0.01454085,87835.0,87804.0,0.00012728]
[1740503476055,0.0751,87836.0,87804.0,0.00012728]
[1740503476255,0.3,87837.0,87804.0,0.00012728]
[1740503476694,0.3,87837.0,87829.0,0.007]
[1740503477096,0.39108194,87836.0,87804.0,0.00012728]
[1740503477443,0.39108194,87836.0,87804.0,0.00662728]
[1740503477444,0.076,87826.0,87804.0,0.00662728]
[1740503477593,0.376,87826.0,87804.0,0.00662728]
[1740503477759,0.376,87826.0,87786.0,0.3251]
[1740503477958,0.376,87826.0,87778.0,0.7]
[1740503477959,0.09108194,87818.0,87787.0,0.03251]
[1740503478167,0.09108194,87818.0,87762.0,0.12199634]
[1740503478825,0.31454085,87817.0,87762.0,0.0465]
[1740503479199,0.01454085,87813.0,87763.0,0.3251]
[1740503479398,0.01454085,87811.0,87763.0,0.3251]
[1740503479602,0.01454085,87809.0,87768.0,0.04494896]
[1740503479911,0.1874991,87809.0,87768.0,0.00616467]
[1740503480312,0.1,87806.0,87768.0,0.00616467]
[1740503480523,0.05675339,87808.0,87768.0,0.00616467]
[1740503480726,0.05662474,87805.0,87768.0,0.00616467]
[1740503480929,0.05662474,87805.0,87767.0,0.0086896]
[1740503481180,0.05601687,87806.0,87767.0,0.0016896]
[1740503481309,0.35662474,87805.0,87767.0,0.0016896]
[1740503481512,0.35696702,87804.0,87768.0,0.007]
[1740503483068,0.35696702,87804.0,87767.0,0.0016896]
[1740503483069,0.05696702,87804.0,87767.0,0.0016896]
[1740503483215,0.3560785,87802.0,87768.0,0.0016906]
[1740503483835,0.05697858,87800.0,87768.0,0.0016906]
[1740503484013,0.01454085,87799.0,87768.0,0.0086906]
[1740503484267,0.3,87801.0,87769.0,0.00159513]
[1740503484465,0.3,87801.0,87770.0,0.4076]
[1740503485261,0.00012702,87801.0,87770.0,0.0825]
[1740503486052,0.05697858,87800.0,87770.0,0.0825]
[1740503486527,0.05697858,87800.0,87771.0,0.3251]
[1740503486813,0.00012702,87801.0,87771.0,0.3251]
[1740503487621,0.001,87800.0,87771.0,0.3251]
[1740503487822,0.00012702,87801.0,87771.0,0.3251]
[1740503488258,0.00112702,87801.0,87775.0,0.0465]
[1740503488455,0.00112702,87801.0,87776.0,0.41673167]
[1740503488605,0.00112702,87801.0,87776.0,0.40059634]
[1740503489007,0.00112702,87801.0,87776.0,0.3251]
[1740503489398,0.00112702,87801.0,87775.0,0.0465]
[1740503489596,0.00012702,87801.0,87775.0,0.0465]
[1740503489813,0.00012702,87801.0,87775.0,0.0535]
[1740503490484,0.00012702,87801.0,87775.0,0.0465]
[1740503490730,0.00012702,87801.0,87775.0,0.0535]
[1740503491168,0.00012702,87801.0,87791.0,0.09774085]
[1740503491391,0.00012702,87801.0,87800.0,0.01454085]
[1740503491631,0.0008453,87837.0,87800.0,0.14723484]
[1740503491879,0.00097248,87837.0,87809.0,0.01454085]
[1740503492134,0.00097248,87837.0,87811.0,0.01454085]
[1740503492358,0.00097248,87837.0,87812.0,0.01231559]
[1740503492584,0.00097248,87837.0,87812.0,0.01072167]
[1740503493450,0.00097248,87837.0,87813.0,0.00159403]
[1740503493711,0.00097248,87837.0,87814.0,0.14064085]
[1740503493952,0.00097248,87837.0,87816.0,0.01454085]
[1740503494202,0.00097248,87837.0,87815.0,0.01454085]
[1740503494435,0.00097248,87837.0,87814.0,0.1261]
[1740503495141,0.00097248,87837.0,87815.0,0.01613473]
[1740503495368,0.00097248,87837.0,87815.0,0.01454085]
[1740503495613,0.00097248,87837.0,87815.0,0.09163101]
[1740503495856,0.00097248,87837.0,87818.0,0.01454085]
[1740503496320,0.00097248,87837.0,87820.0,0.01454085]
[1740503496567,0.00097248,87837.0,87822.0,0.01454085]
[1740503496820,0.00097248,87837.0,87821.0,0.07549634]
[1740503497063,0.00097248,87837.0,87818.0,0.07549634]
[1740503497498,0.00097248,87837.0,87820.0,0.007]
[1740503498880,0.00097248,87837.0,87818.0,0.07549634]
[1740503499132,0.00097248,87837.0,87818.0,0.08249634]
[1740503499627,0.00097248,87837.0,87818.0,0.07549634]
[1740503499823,0.00097248,87837.0,87819.0,0.00159394]
[1740503500067,0.00197248,87837.0,87820.0,0.007]
[1740503500481,0.00097248,87837.0,87818.0,0.07549634]
[1740503500684,0.00197248,87837.0,87818.0,0.08249634]
[1740503500897,0.00197248,87837.0,87819.0,0.00159394]
[1740503501184,0.00197248,87837.0,87818.0,0.08249634]
[1740503501623,0.00197248,87837.0,87818.0,0.007]
[1740503502026,0.00097248,87837.0,87814.0,0.1261]
[1740503502378,0.00097248,87837.0,87820.0,0.007]
[1740503502710,0.00097248,87837.0,87821.0,0.3251]
[1740503503868,0.00097248,87837.0,87821.0,0.3321]
[1740503504989,0.00097248,87837.0,87821.0,0.3251]
[1740503505464,0.00097248,87837.0,87815.0,0.3251]
[1740503505888,0.00097248,87837.0,87805.0,0.3251]
[1740503506087,0.00097248,87837.0,87805.0,0.16671363]
[1740503506802,0.00097248,87837.0,87801.0,0.00328479]
[1740503506803,0.00097248,87837.0,87815.0,0.007]
[1740503506982,0.00097248,87837.0,87816.0,0.16671363]
[1740503507239,0.00097248,87837.0,87816.0,0.0209081]
[1740503507750,0.00097248,87837.0,87817.0,0.07679384]
[1740503507956,0.00097248,87837.0,87818.0,0.01047019]
[1740503508154,0.00097248,87837.0,87819.0,0.02250194]
[1740503508357,0.00097248,87837.0,87819.0,0.0209081]
[1740503508831,0.00197248,87837.0,87822.0,0.0477]
[1740503509209,0.00197248,87837.0,87822.0,0.0686081]
[1740503509576,0.00097248,87837.0,87822.0,0.0686081]
[1740503509731,0.00197248,87837.0,87822.0,0.0686081]
[1740503510098,0.00197248,87837.0,87824.0,0.01454085]
[1740503510338,0.00197248,87837.0,87828.0,0.01454085]
[1740503510948,0.00197248,87837.0,87830.0,0.01454085]
[1740503511320,0.00197248,87837.0,87831.0,0.0209081]
[1740503512165,0.00097248,87837.0,87831.0,0.0209081]
[1740503512834,0.00097248,87837.0,87831.0,0.02250176]
[1740503513335,0.00097248,87837.0,87831.0,0.0279081]
[1740503513542,0.00097248,87837.0,87832.0,0.00159358]
[1740503513844,0.00097248,87837.0,87833.0,0.01205836]
[1740503514049,0.00097248,87837.0,87836.0,0.16828194]
[1740503514261,0.00097248,87837.0,87836.0,0.20532422]
[1740503514466,0.00097248,87837.0,87836.0,0.20373089]
[1740503514675,0.00097248,87837.0,87836.0,0.11264895]
[1740503514868,0.00097248,87837.0,87836.0,0.11031151]
[1740503515316,0.00197248,87837.0,87836.0,0.0209081]
[1740503515761,0.00097248,87837.0,87836.0,0.0209081]
[1740503516177,0.00197248,87837.0,87836.0,0.0279081]
[1740503516598,0.00097248,87837.0,87836.0,0.0209081]
[1740503516773,0.00197248,87837.0,87836.0,0.0279081]
[1740503518152,0.00097248,87837.0,87836.0,0.0209081]
[1740503518361,0.00097248,87837.0,87792.0,0.0483]
[1740503518576,0.1,87834.0,87776.0,0.0483]
[1740503518806,0.09108194,87835.0,87776.0,0.0483]
[1740503518807,0.3,87833.0,87776.0,0.0483]
[1740503519007,0.00159382,87832.0,87776.0,0.0483]
[1740503519238,0.3,87833.0,87802.0,0.0015944]
[1740503519447,0.3,87833.0,87804.0,0.01454085]
[1740503519680,0.3,87833.0,87803.0,0.13895365]
[1740503519887,0.00159382,87832.0,87816.0,0.0016904]
[1740503520013,0.00097248,87837.0,87816.0,0.0016904]
[1740503520216,0.00159382,87836.0,87816.0,0.0016904]
[1740503522184,0.00259382,87836.0,87816.0,0.0086904]
[1740503522326,0.00943314,87835.0,87816.0,0.0086904]
[1740503522528,0.00159382,87834.0,87816.0,0.0086904]
[1740503522734,0.00159382,87834.0,87816.0,0.0016904]
[1740503522932,0.00159382,87834.0,87816.0,0.0086904]
[1740503523132,0.001,87836.0,87817.0,0.0803]
[1740503523338,0.001,87836.0,87818.0,0.01049285]
[1740503523590,0.00097248,87837.0,87818.0,0.01049285]
[1740503523786,0.001,87834.0,87818.0,0.00889904]
[1740503524193,0.001,87834.0,87816.0,0.0086904]
[1740503525064,0.00097248,87837.0,87816.0,0.0086904]
[1740503525065,0.00097248,87837.0,87817.0,0.00159395]
[1740503525180,0.00097248,87837.0,87818.0,0.007]
[1740503525842,0.00097248,87837.0,87817.0,0.01195365]
[1740503526200,0.00097248,87837.0,87818.0,0.0161347]
[1740503526813,0.00097248,87837.0,87818.0,0.0231347]
[1740503527325,0.00097248,87837.0,87818.0,0.02154085]
[1740503527532,0.00097248,87837.0,87818.0,0.007]
[1740503527936,0.00097248,87837.0,87805.0,0.09108194]
[1740503528139,0.00097248,87837.0,87805.0,0.08768859]
[1740503528396,0.00097248,87837.0,87805.0,0.0700386]
[1740503528536,0.0474296,87832.0,87790.0,0.05664902]
[1740503528745,0.0474296,87826.0,87790.0,0.04444902]
[1740503528947,0.00838093,87777.0,87770.0,0.57952448]
[1740503529148,0.0474296,87816.0,87773.0,0.09108194]
[1740503529344,0.0474296,87825.0,87782.0,0.14691154]
[1740503529558,0.0474296,87825.0,87783.0,0.00079712]
[1740503529762,0.0474296,87825.0,87791.0,0.09108194]
[1740503530010,0.0474296,87825.0,87793.0,0.01454085]
[1740503530196,0.0474296,87835.0,87792.0,0.8617]
[1740503530391,0.0474296,87835.0,87792.0,0.98242702]
[1740503530672,0.0008453,87837.0,87792.0,0.98242702]
[1740503530673,0.0474296,87833.0,87792.0,0.98242702]
[1740503530803,0.0474296,87836.0,87792.0,0.98242702]
[1740503531004,0.0474296,87836.0,87794.0,0.1206]
[1740503531223,0.0474296,87836.0,87800.0,0.09108194]
[1740503531539,0.0474296,87836.0,87801.0,0.0122]
[1740503531743,0.00844525,87802.0,87792.0,0.84623409]
[1740503531944,0.00211131,87802.0,87796.0,0.0122]
[1740503532110,0.00211131,87802.0,87797.0,0.01454085]
[1740503532310,0.00211131,87802.0,87796.0,0.0122]
[1740503532775,0.00211131,87802.0,87796.0,0.007]
[1740503533632,0.00211131,87802.0,87800.0,0.09108194]
[1740503533850,0.0008479,87835.0,87802.0,0.1]
[1740503534075,0.0008479,87835.0,87809.0,0.09108194]
[1740503534292,0.0008479,87835.0,87811.0,0.01354085]
[1740503534733,0.0008479,87835.0,87812.0,0.1302]
[1740503535187,0.0018479,87835.0,87812.0,0.1302]
[1740503535450,0.00841184,87813.0,87812.0,0.07028918]
[1740503535717,0.0018479,87835.0,87818.0,0.1]
[1740503535718,0.0008479,87835.0,87818.0,0.1]
[1740503535942,0.0018479,87835.0,87826.0,0.09108194]
[1740503536642,0.0018479,87835.0,87828.0,0.01454085]
[1740503536858,0.0018479,87835.0,87830.0,0.01454085]
[1740503537083,0.00857217,87829.0,87820.0,2.91069511]
[1740503537320,0.00107152,87829.0,87820.0,2.86359511]
[1740503538264,0.00107152,87829.0,87820.0,2.96359511]
[1740503538481,0.00107152,87829.0,87823.0,0.1]
[1740503538706,0.00107152,87829.0,87820.0,2.95467705]
[1740503538935,0.00107152,87829.0,87823.0,0.01454085]
[1740503539689,0.00207152,87829.0,87823.0,0.02054085]
[1740503540184,0.00107152,87829.0,87824.0,0.8617]
[1740503540388,0.00107152,87829.0,87824.0,0.81936213]
[1740503540594,0.00207152,87829.0,87824.0,0.79238327]
[1740503541909,0.00107152,87829.0,87825.0,0.79238327]
[1740503542056,0.00207152,87829.0,87827.0,0.0525704]
[1740503542265,0.00207152,87829.0,87828.0,0.01454085]
[1740503542446,0.00107152,87829.0,87828.0,0.01454085]
[1740503543047,0.00207152,87829.0,87826.0,0.06711125]
[1740503543252,0.00207152,87829.0,87828.0,0.00357127]
[1740503543405,0.00107152,87829.0,87825.0,0.73967453]
[1740503543734,0.00207152,87829.0,87825.0,0.55314934]
[1740503544340,0.00207152,87829.0,87825.0,0.50764934]
[1740503544578,0.00207152,87829.0,87825.0,0.2498622]
[1740503544826,0.00107152,87829.0,87825.0,0.2071622]
[1740503545131,0.00207152,87829.0,87825.0,0.17987649]
[1740503545336,0.00207152,87829.0,87825.0,0.15537649]
[1740503545579,0.00107152,87829.0,87825.0,0.15537649]
[1740503545804,0.00107152,87829.0,87825.0,0.16237649]
[1740503546034,0.00207152,87829.0,87825.0,0.37040649]
[1740503546254,0.00107152,87829.0,87825.0,0.36340649]
[1740503546711,0.00207152,87829.0,87825.0,0.37040649]
[1740503546962,0.00207152,87829.0,87825.0,0.25088649]
[1740503547859,0.00107152,87829.0,87825.0,0.18517649]
[1740503548060,0.00107152,87829.0,87825.0,0.14344649]
[1740503548281,0.00107152,87829.0,87826.0,0.1206]
[1740503548504,0.00207152,87829.0,87826.0,0.1206]
[1740503549192,0.0457842,87878.0,87828.0,0.1206]
[1740503549418,0.1,87873.0,87830.0,0.1206]
[1740503549647,0.1,87871.0,87830.0,0.1196]
[1740503550325,0.00856113,87831.0,87829.0,0.29712]
[1740503550548,0.3,87870.0,87829.0,0.29712]
[1740503551440,0.3,87877.0,87829.0,0.29712]
[1740503551670,0.00012716,87870.0,87829.0,0.29712]
[1740503552099,0.30112716,87870.0,87829.0,0.29912]
[1740503552566,0.30012716,87870.0,87829.0,0.29712]
[1740503552867,0.09108194,87869.0,87829.0,0.29912]
[1740503553384,0.00859713,87830.0,87825.0,0.09809902]
[1740503553615,0.00859713,87830.0,87820.0,2.53521728]
[1740503553840,0.00859713,87830.0,87820.0,2.50093157]
[1740503554091,0.00859713,87830.0,87820.0,1.92034978]
[1740503554313,0.00859713,87830.0,87820.0,1.34892121]
[1740503554538,0.1,87855.0,87820.0,1.31476266]
[1740503554758,0.00877113,87821.0,87820.0,1.31476266]
[1740503554983,0.3293,87854.0,87820.0,1.31476266]
[1740503555219,0.3293,87859.0,87820.0,1.31476266]
[1740503555445,0.001,87830.0,87821.0,0.1206]
[1740503555889,0.3293,87859.0,87821.0,0.1206]
[1740503556334,0.001,87854.0,87821.0,0.1206]
[1740503556554,0.101,87854.0,87821.0,0.00357145]
[1740503556781,0.0494,87853.0,87821.0,0.00357145]
[1740503557728,0.001,87830.0,87821.0,0.00357145]
[1740503557957,0.001,87830.0,87821.0,0.0016954]
[1740503558176,0.6293,87852.0,87821.0,0.1222954]
[1740503558629,0.3293,87852.0,87821.0,0.1222954]
[1740503559357,0.3303,87852.0,87821.0,0.12586684]
[1740503559835,0.00372,87829.0,87821.0,0.12586684]
[1740503560549,0.00092455,87829.0,87822.0,0.00357144]
[1740503560787,0.00092455,87829.0,87823.0,0.046]
[1740503561062,0.00092455,87829.0,87828.0,0.1206]
[1740503561538,0.00192455,87829.0,87828.0,0.1206]
[1740503562056,0.00092455,87829.0,87824.0,0.1206]
[1740503562287,0.00092455,87829.0,87828.0,0.00357144]
[1740503562515,0.00192455,87829.0,87828.0,0.00357144]
[1740503563460,0.00192455,87829.0,87821.0,0.00426684]
[1740503563665,0.00092455,87829.0,87821.0,0.00426684]
[1740503563956,0.00292455,87829.0,87828.0,0.007]
[1740503564170,0.00192455,87829.0,87824.0,0.004]
[1740503564405,0.00092455,87829.0,87821.0,0.0016954]
[1740503564609,0.00192455,87829.0,87828.0,0.007]
[1740503564826,0.00292455,87829.0,87821.0,0.0056954]
[1740503565195,0.00192455,87829.0,87821.0,0.0016954]
[1740503565398,0.01454085,87842.0,87821.0,0.0016954]
[1740503565605,0.001,87829.0,87821.0,0.0056954]
[1740503566284,0.002,87829.0,87828.0,0.007]
[1740503566485,0.002,87829.0,87821.0,0.0056954]
[1740503566887,0.003,87829.0,87821.0,0.0126954]
[1740503567093,0.001,87829.0,87821.0,0.0056954]
[1740503567289,0.3293,87841.0,87821.0,0.0016954]
[1740503567491,0.001,87829.0,87828.0,0.007]
[1740503567760,0.002,87829.0,87828.0,0.007]
[1740503568465,0.3,87840.0,87821.0,0.0016954]
[1740503568642,0.3,87840.0,87821.0,0.0076954]
[1740503569019,0.3,87840.0,87821.0,0.0016954]
[1740503569448,0.3,87838.0,87821.0,0.0016954]
[1740503569646,0.39108194,87826.0,87821.0,0.0016954]
[1740503570055,0.3,87826.0,87821.0,0.0016954]
[1740503570433,0.3,87826.0,87821.0,0.0086954]
[1740503570643,0.3,87830.0,87821.0,0.0016954]
[1740503571036,0.3,87830.0,87821.0,0.0086954]
[1740503571037,0.001,87826.0,87821.0,0.0086954]
[1740503571445,0.001,87829.0,87821.0,0.0016954]
[1740503571838,0.3,87830.0,87821.0,0.0016954]
[1740503571839,0.001,87826.0,87821.0,0.0086954]
[1740503572003,0.001,87826.0,87821.0,0.0156954]
[1740503572241,0.001,87826.0,87821.0,0.0086954]
[1740503572421,0.002,87826.0,87821.0,0.0156954]
[1740503572719,0.002,87826.0,87821.0,0.0086954]
[1740503572921,0.002,87826.0,87821.0,0.0156954]
[1740503573703,0.001,87829.0,87821.0,0.1292954]
[1740503574090,0.001,87829.0,87821.0,0.1362954]
[1740503574285,0.3293,87848.0,87821.0,0.1222954]
[1740503574488,0.001,87826.0,87821.0,0.1262954]
[1740503574742,0.001,87826.0,87823.0,0.1206]
[1740503574977,0.3293,87858.0,87823.0,0.1206]
[1740503575184,0.3293,87867.0,87823.0,0.1206]
[1740503575457,0.3,87866.0,87823.0,0.1206]
[1740503575695,0.1,87864.0,87823.0,0.1206]
[1740503575903,0.001,87829.0,87823.0,0.1206]
[1740503576111,0.001,87829.0,87824.0,0.00357112]
[1740503577261,0.3,87866.0,87824.0,0.00357112]
[1740503577474,0.6303,87866.0,87825.0,0.00357112]
[1740503577675,0.6303,87866.0,87827.0,0.1206]
[1740503577872,0.6293,87866.0,87827.0,0.1206]
[1740503578141,0.65873894,87866.0,87827.0,0.1206]
[1740503578344,0.001,87829.0,87825.0,0.00357112]
[1740503578698,0.3,87864.0,87825.0,0.00357112]
[1740503579041,0.39108194,87862.0,87827.0,0.004]
[1740503579585,0.1,87861.0,87827.0,0.004]
[1740503580083,0.1,87861.0,87827.0,0.011]
[1740503580291,0.1,87861.0,87827.0,0.004]
[1740503580691,0.4,87859.0,87828.0,0.00357112]
[1740503580884,0.3,87859.0,87828.0,0.00357112]
[1740503581330,0.39396761,87859.0,87828.0,0.00357112]
[1740503581536,0.39108194,87852.0,87828.0,0.00357112]
[1740503581782,0.47378194,87852.0,87828.0,0.00357112]
[1740503581999,0.3,87852.0,87828.0,0.00357112]
[1740503582206,0.3,87852.0,87828.0,0.005]
[1740503582567,0.001,87859.0,87829.0,0.0485]
[1740503582753,0.3293,87874.0,87830.0,0.09734085]
[1740503582987,0.001,87852.0,87830.0,0.09734085]
[1740503583436,0.001,87852.0,87834.0,0.01454085]
[1740503583644,0.001,87852.0,87834.0,0.13514085]
[1740503584020,0.001,87852.0,87836.0,0.13514085]
[1740503584243,0.0008476,87862.0,87840.0,0.13514085]
[1740503584426,0.0008476,87862.0,87848.0,0.1206]
[1740503584631,0.001,87859.0,87854.0,0.13514085]
[1740503584833,0.001,87859.0,87858.0,0.2206]
[1740503585070,0.0008476,87862.0,87856.0,0.1206]
[1740503585499,0.0018476,87862.0,87857.0,0.01454085]
[1740503585795,0.00197473,87862.0,87857.0,0.01454085]
[1740503586001,0.00097473,87862.0,87855.0,0.32867112]
[1740503586130,0.001,87859.0,87858.0,0.007]
[1740503586493,0.001,87859.0,87858.0,0.02154085]
[1740503586690,0.001,87859.0,87858.0,0.007]
[1740503587332,0.00097473,87862.0,87857.0,0.007]
[1740503587801,0.00197473,87862.0,87858.0,0.007]
[1740503587948,0.00197473,87862.0,87858.0,0.14214085]
[1740503588150,0.00097473,87862.0,87859.0,0.13514085]
[1740503588359,0.00097473,87862.0,87856.0,0.00357112]
[1740503588360,0.00097473,87862.0,87861.0,0.09997324]
[1740503588565,0.00097473,87862.0,87861.0,0.24587324]
[1740503589372,0.00197473,87862.0,87861.0,0.24587324]
[1740503589579,0.00197473,87862.0,87861.0,0.57097324]
[1740503589778,0.00702932,87895.0,87877.0,0.1]
[1740503589980,0.17566761,87928.0,87878.0,0.3251]
[1740503590255,0.3293,87936.0,87889.0,0.00603239]
[1740503590387,0.3301476,87940.0,87891.0,0.01454085]
[1740503590635,0.0008476,87940.0,87901.0,0.01454085]
[1740503590793,0.0008476,87940.0,87901.0,0.33964085]
[1740503591806,0.0008476,87940.0,87901.0,0.44664085]
[1740503592208,0.0008476,87940.0,87901.0,0.43964085]
[1740503592474,0.0008476,87940.0,87901.0,1.13964085]
[1740503592699,0.0008476,87940.0,87907.0,0.36396517]
[1740503592909,0.0008476,87940.0,87909.0,0.01454085]